Cogmind - Beta 10.2 *** ADVENTURER MODE // 2021.01.04 @ 16:50:23 Player: Yog-Sothoth Result: Self-destructed Performance ------------- Evolutions (2) 1000 Regions Visited (3) 600 Robots Destroyed (28) 140 Value Destroyed (600) 600 Prototype IDs (11) 220 Alien Tech Used (0) 0 Bonus (22) 22 TOTAL SCORE: 2582 Bonus ------- High Alert Combat Kills 22 Cogmind --------- Core Integrity 493/550 Matter 195/300 Energy 7/100 System Corruption 0% Temperature Cool (18) Movement Flying (37) Location -8/Materials Parts ------- > --- POWER (2) -------- (None) > --- PROPULSION (2) --- Xenon Bombardment Thruster Xenon Bombardment Thruster > --- UTILITY (5) ------ Improved Cooling System Improved Cooling System Improved Signal Interpreter System Backup Module > --- WEAPON (2) ------- Arc Projector > --- INVENTORY (4) ---- System Backup Module Arc Projector Flail Peak State ------------ > --- POWER ------------ Light Deuterium Engine > --- PROPULSION ------- Xenon Bombardment Thruster Xenon Bombardment Thruster > --- UTILITY ---------- Improved Cooling System Improved Signal Interpreter System Backup Module System Backup Module > --- WEAPON ----------- Arc Projector > --- INVENTORY -------- Arc Projector Advanced Beam Cannon Autogun Flail [Rating: 30] Favorites ----------- Power Light Ion Engine Engine Light Ion Engine Propulsion Hover Unit Wheel Wheel Hover Unit Hover Unit Flight Unit Improved Flight Unit Utility Improved Signal Interpreter Device Improved Heat Sink Storage Medium Battery Processor Improved Signal Interpreter Weapon Light Assault Rifle Energy Gun EM Pulse Gun Energy Cannon Light EM Pulse Cannon Ballistic Gun Light Assault Rifle Launcher Grenade Launcher Impact Weapon Hammer Build | -11 -10 -9 -8 ------- Run | Scr Mat Mat Mat Slots Evolved 4 | . . 2 2 Power 1 | . . 1 . Propulsion . | . . . . Utility 3 | . . 1 2 Weapon . | . . . . Parts Attached 56 | 6 16 25 9 Power 10 | 1 2 7 . Engine 10 | 1 2 7 . Core . | . . . . Reactor . | . . . . Propulsion 16 | 2 4 6 4 Treads . | . . . . Leg . | . . . . Wheel 2 | 2 . . . Hover 6 | . 4 2 . Flight 8 | . . 4 4 Utility 13 | 1 5 3 4 Device 7 | . 2 1 4 Storage 3 | 1 2 . . Processor 3 | . 1 2 . Hackware . | . . . . Protection . | . . . . Artifact . | . . . . Weapon 17 | 2 5 9 1 Energy Gun 7 | 1 1 4 1 Energy Cannon 2 | . . 2 . Ballistic Gun 3 | 1 1 1 . Ballistic Cannon . | . . . . Launcher 2 | . 2 . . Special Weapon . | . . . . Impact Weapon 3 | . 1 2 . Slashing Weapon . | . . . . Piercing Weapon . | . . . . Special Melee Weapon . | . . . . Unidentified Prototypes 3 | . . 2 1 Parts Lost 5 | . 1 3 1 Power 3 | . . 2 1 Propulsion 1 | . 1 . . Utility 1 | . . 1 . Weapon . | . . . . Highest Loss Streak 2 | . 1 2 1 Average Slot Usage (%) 85 | . 95 83 70 Engine 15 | . 14 17 8 Wheel 1 | . 5 . . Hover 16 | . 22 17 . Flight 4 | . . 4 18 Device 17 | . 11 18 25 Storage 2 | . 7 . . Processor 8 | . 4 11 9 Energy Gun 5 | . 7 3 9 Energy Cannon 4 | . . 7 . Ballistic Gun 5 | . 17 . . Impact Weapon 1 | . . 2 . Naked Turns . | . . . . Heaviest Build 15 | 12 13 15 14 Greatest Support 26 | 26 26 16 14 Greatest Overweight (x) 4 | . 4 2 1 Average Overweight (x) . | . . . . Largest Inventory Capacity 6 | 6 6 4 4 Average Capacity 4 | 4 4 4 4 Most Carried 4 | 2 4 4 4 Average Carried 3 | 1 3 3 3 Final Capacity 6 | 6 4 4 4 Final Carried 4 | 2 4 4 3 Class Distribution -------------------- 60% | Mutant 23% | Scavenger-Mutant 16% | Sprinter Dominant Class ---------------- Mutant | -10/Materials Scavenger-Mutant | -9/Materials Mutant | -8/Materials Resources | -11 -10 -9 -8 ----------- Run | Scr Mat Mat Mat Matter Collected 707 | 188 284 235 . Remotely . | . . . . Salvage Created 1002 | . 293 709 . Parts 61 | . 15 46 . Haulers Intercepted 6 | . 2 4 . Recyclers Shooed . | . . . . Parts Field Recycled . | . . . . Retrieved Matter . | . . . . Parts Self-Destructed . | . . . . Prevented . | . . . . Kills | -11 -10 -9 -8 ------- Run | Scr Mat Mat Mat Combat Hostiles Destroyed 18 | . 4 14 . Melee 2 | . . 2 . Guns 6 | . 4 2 . Cannons 10 | . . 10 . Classes Destroyed 5 | . 3 2 . Hauler 6 | . 2 4 . Watcher 4 | . 2 2 . Swarmer 7 | . . 7 . Grunt 7 | . 4 3 . Sentry 4 | . . 4 . Best Kill Streak 7 | . 2 7 . Combat Bots Only 7 | . 2 7 . Max Kills in Single Turn 1 | . 1 1 . Gunslinging . | . . . . Exploded . | . . . . Melee 1 | . . 1 . Uniques/NPCs Destroyed . | . . . . Combat | -11 -10 -9 -8 -------- Run | Scr Mat Mat Mat Damage Taken 930 | . 246 547 137 Core 265 | . 63 145 57 Absorbed by Shields . | . . . . Core Remaining (%) 79 | 100 74 63 . Volleys Fired 74 | . 32 35 7 Largest 2 | . 2 2 1 Hottest 112 | . 70 112 55 Shots Fired 114 | . 63 44 7 Gun 83 | . 60 16 7 Cannon 28 | . . 28 . Launcher 3 | . 3 . . Special . | . . . . Kinetic 37 | . 37 . . Thermal 28 | . 10 18 . Explosive 3 | . 3 . . Electromagnetic 46 | . 13 26 7 Robot Hit Streak 25 | . 25 13 9 Robot Miss Streak 3 | . 3 2 . Penetration Max . | . . . . Secondary Targets 1 | . 1 . . Max Gunslinging Chain 1 | . 1 . . Shots Hit Robots 107 | . 47 53 7 Core Hits 43 | . 19 22 2 Critical Hits 4 | . 3 1 . Critical Kills 3 | . 2 1 . Critical Parts Destroyed 1 | . 1 . . Melee Attacks 21 | . . 21 . Impact 21 | . . 21 . Slashing . | . . . . Piercing . | . . . . Sneak Attacks 1 | . . 1 . Combat Hostiles . | . . . . Follow-up Attacks . | . . . . Damage Inflicted 1828 | . 602 1143 83 Guns 779 | . 483 213 83 Cannons 500 | . . 500 . Explosions 119 | . 119 . . Melee 430 | . . 430 . Ramming . | . . . . Kinetic 204 | . 204 . . Thermal 361 | . 110 251 . Explosive 119 | . 119 . . Electromagnetic 714 | . 169 462 83 Impact 430 | . . 430 . Slashing . | . . . . Piercing . | . . . . Highest Corruption . | . . . . Average Corruption . | . . . . Corruption Purged . | . . . . Overload Shots . | . . . . Overflow Damage 81 | . . 81 . Projectiles . | . . . . Explosions . | . . . . Melee 81 | . . 81 . Knockbacks 1 | . . 1 . Impact 1 | . . 1 . Kinetic . | . . . . Secondary . | . . . . Self-Inflicted Damage 18 | . 18 . . Shots 1 | . 1 . . Rammed . | . . . . Targets Rammed . | . . . . Kicked . | . . . . Crushed . | . . . . Highest Temperature 240 | . 240 56 179 Average Temperature 49 | . 59 20 109 Received Heat Transfer 444 | . 165 189 90 Siege Activations . | . . . . Robots Corrupted . | . . . . Combat Hostiles . | . . . . Parts Fried 3 | . . 3 . Impact Corruptions 4 | . . 4 . Robots Melted . | . . . . Combat Hostiles . | . . . . Parts Melted 3 | . 1 2 . Heat Transferred 851 | . 333 518 . Parts Sabotaged . | . . . . Parts Stolen . | . . . . Parts Stripped . | . . . . Power Chain Reactions . | . . . . Missiles Intercepted . | . . . . Alert | -11 -10 -9 -8 ------- Run | Scr Mat Mat Mat Peak Influence 453 | . 197 453 214 Initial 162 | . . 70 162 Average 152 | . 117 178 177 Maximum Alert Level 2 | . . 2 1 Low Security (%) 81 | 100 100 69 86 Level 1 13 | . . 22 13 Level 2 4 | . . 7 . Level 3 . | . . . . Level 4 . | . . . . Level 5 . | . . . . High Security . | . . . . Max Security . | . . . . Squads Dispatched 3 | . 1 2 . Investigation 2 | . 1 1 . Extermination . | . . . . Reinforcement 1 | . . 1 . Assault . | . . . . Garrison . | . . . . Intercept . | . . . . Construction Impeded . | . . . . Haulers Reinforced . | . . . . Stealth | -11 -10 -9 -8 --------- Run | Scr Mat Mat Mat Distress Signals 2 | . 1 1 . Communications Jammed . | . . . . Distress Signals . | . . . . Times Spotted 37 | . 10 21 6 Peak Tracking Total 5 | . 2 5 4 Tactical Retreats 4 | . 1 1 2 Traps | -11 -10 -9 -8 ------- Run | Scr Mat Mat Mat Traps Triggered 1 | . 1 . . Indirectly . | . . . . Trap Hack Attempts . | . . . . Triggered . | . . . . Disarmed . | . . . . Reprogrammed . | . . . . Reused . | . . . . Traps Extracted . | . . . . Installed . | . . . . Triggered . | . . . . Machines | -11 -10 -9 -8 ---------- Run | Scr Mat Mat Mat Machines Disabled 1 | . . 1 . Max in Single Turn 1 | . . 1 . Machines Sabotaged . | . . . . Garrisons Compromised . | . . . . Overloaded Fab Kills . | . . . . Fab Network Shutdowns . | . . . . Hacking | -11 -10 -9 -8 --------- Run | Scr Mat Mat Mat Machines Accessed 16 | . 5 8 3 Terminals 13 | . 4 6 3 Fabricators . | . . . . Repair Stations 1 | . . 1 . Recycling Units 2 | . 1 1 . Scanalyzers . | . . . . Garrison Access . | . . . . Total Hacks 31 | . 8 15 8 Successful 19 | . 5 9 5 Failed 12 | . 3 6 3 Catastrophic . | . . . . Database Lockouts . | . . . . Manual . | . . . . Terminals 27 | . 7 12 8 Fabricators . | . . . . Repair Stations 1 | . . 1 . Recycling Units 3 | . 1 2 . Scanalyzers . | . . . . Garrison Access . | . . . . Terminal Hacks 16 | . 4 7 5 Prototype ID Bank 4 | . 1 3 . Emergency Access Points 1 | . . . 1 Locate Traps 1 | . . 1 . Dispatch Records 1 | . 1 . . Hauler Manifests 4 | . . 2 2 Registered Components 1 | . . . 1 Zone Layout 4 | . 2 1 1 Fabricator Hacks . | . . . . Repair Station Hacks . | . . . . Recycling Unit Hacks 3 | . 1 2 . Report Inventory 2 | . 1 1 . Retrieve Components 1 | . . 1 . Scanalyzer . | . . . . Garrison Access Hacks . | . . . . Unauthorized Hacks . | . . . . Terminals . | . . . . Fabricators . | . . . . Repair Stations . | . . . . Recycling Units . | . . . . Scanalyzers . | . . . . Garrison Access . | . . . . Data Cores Recovered . | . . . . Used . | . . . . Hacking Detections 11 | . 3 6 2 Full Trace Events 1 | . . 1 . Feedback Events . | . . . . Feedback Blocked . | . . . . Robot Schematics Acquired . | . . . . Robots Built . | . . . . Matter . | . . . . Time . | . . . . Total Robot Build Rating . | . . . . Part Schematics Acquired . | . . . . Parts Built . | . . . . Matter . | . . . . Time . | . . . . Total Part Build Rating . | . . . . Parts Repaired . | . . . . Time . | . . . . Parts Recycled . | . . . . Recycled Matter . | . . . . Retrieved Matter . | . . . . Retrieved Components 2 | . . 2 . Parts Scanalyzed . | . . . . Part Schematics Acquired . | . . . . Parts Damaged . | . . . . Bothacking | -11 -10 -9 -8 ------------ Run | Scr Mat Mat Mat Used RIF Installer . | . . . . Robots Hacked . | . . . . Non-combat . | . . . . Combat . | . . . . Robot Hacks Applied . | . . . . Relay Couplers Released . | . . . . Robots Rewired . | . . . . Allies Hacked . | . . . . Hacks Repelled . | . . . . Allies | -11 -10 -9 -8 -------- Run | Scr Mat Mat Mat Total Allies . | . . . . Largest Group . | . . . . Highest-Rated Group . | . . . . Highest-Rated Ally . | . . . . Total Orders . | . . . . Ally Attacks . | . . . . Total Damage . | . . . . Kills . | . . . . Allies Corrupted . | . . . . Allies Melted . | . . . . Intel | -11 -10 -9 -8 ------- Run | Scr Mat Mat Mat Robot Analysis Total . | . . . . Derelict Logs Recovered . | . . . . Drone Launches . | . . . . Drone Recoveries . | . . . . Exploration | -11 -10 -9 -8 ------------- Run | Scr Mat Mat Mat Turns Passed 1295 | 51 397 702 145 Spaces Moved 1365 | 45 425 635 260 Core 2 | 1 1 . . Treads . | . . . . Legs . | . . . . Wheels 94 | 44 50 . . Hover 861 | . 374 487 . Flight 408 | . . 148 260 Fastest Speed 32 | 50 56 32 32 Average Speed 52 | 88 60 50 35 Slowest Speed 250 | 90 250 175 120 Overloaded Moves . | . . . . Propulsion Burnouts . | . . . . Robots Hopped 7 | . . 1 6 Cave-ins Triggered . | . . . . Exploration Rate (%) 41 | 3 81 62 20 Regions Visited 3 Branch Regions . Pre-discovered Areas . | . . . . Known Exits Taken 2 | . 1 1 . Unknown Exits Taken 1 | 1 . . . Scrap Searched . | . . . . Spaces Dug . | . . . . Terrain Destroyed 10 | . 10 . . Melee . | . . . . Projectile . | . . . . AOE 10 | . 10 . . Terrain Rammed . | . . . . Walls Destroyed . | . . . . Machines Disabled . | . . . . Actions | -11 -10 -9 -8 --------- Run | Scr Mat Mat Mat Total 1805 | 53 509 942 301 Wait 220 | . 16 186 18 Move 1348 | 44 424 632 248 Hop 7 | . . 1 6 Pick Up 32 | 3 9 17 3 Fast Attach 25 | 5 7 7 6 Attach 14 | 1 5 7 1 Detach 4 | . . 4 . Swap 17 | . 4 11 2 Drop 43 | . 12 21 10 Fire 74 | . 32 35 7 Melee 21 | . . 21 . Ram . | . . . . Kick . | . . . . Crush . | . . . . Escape Stasis . | . . . . Rewire . | . . . . Trap . | . . . . Miscellaneous . | . . . . Route ------- -11/Scrapyard -10/Materials (discovered 2 exits: *Mat / [*Min]) -9/Materials (discovered 2 exits: *Mat / [*Min]) -8/Materials History --------- Turn | Location | Event 17 | -11/Scrapyard | Discovered new exit (range 15) 52 | -11/Scrapyard | Entered Materials 184 | -10/Materials | Discovered new exit (range 7) 334 | -10/Materials | Build established: Mutant 443 | -10/Materials | Discovered new exit (range 11) 448 | -10/Materials | Identified exit to Materials 449 | -10/Materials | Entered another Materials area 449 | -9/Materials | Evolved 2 slots: Power x1, Utility x1 621 | -9/Materials | Discovered new exit (range 16) 902 | -9/Materials | Destroyed 7 combat bots 1141 | -9/Materials | Discovered new exit (range 12) 1151 | -9/Materials | Identified exit to Materials 1151 | -9/Materials | Entered another Materials area 1151 | -8/Materials | Evolved 2 slots: Utility x2 1296 | -8/Materials | Self-destructed Last Messages --------------- Connecting with Terminal... >>Access(Emergency) Found 2 emergency access doors: (12,37) (12,45) Map updated. >>Inventory(Components) Retrieving component inventory records... Found 1 registered component stockpile: IJKB26CTFE: Carbon-fiber Leg Downloaded coordinate data. K-01 Serf collects debris. G-47 Trooper shuts down. Dropped Xenon Bombardment Thruster. Acquired Prototype Flight Unit. Identified Imp. VTOL Module. Malfunction: Heat surge (+229). Dropped Faulty Imp. VTOL Module. Acquired Xenon Bombardment Thruster. Lgt. Deuterium Engine destroyed. Map ----- +----------------------------------------------------+ | ??# #??????????????????????????????????????????? | | ??# #??????????????????????????????????????????? | | ??# #??????????????????????????????????????????? | | ??# #??????????????????????????????????????????? | | ??# ##########?????????????????????????????????? | | ??# ## ! #?????????????????????????????????? | | ?## ## #?????????????????????????????????? | | ?# !# "T" #?????????????????????????????????? | | ?# T" # """ #?????????????????????????????????? | | ?# " + #?????????????????????????????????? | | ?# ####+####?######??????????????????????????? | | ?# #??# #????#] #??????????????????????????? | | ?### ###??# #????# #??????????????????????????? | | ???# #????# #????# !#??????????????????????????? | | ???# #????# #????# #??????????????????????????? | | ???# #????# #????# #??????????????????????????? | | ???# #????# #????#![ #??????????????????????????? | | ???# ####?# #????#![ #??????????????????????????? | | ???# ###+######! =#??????????????????????????? | | ???#### # # #??????????????????????????? | | ??????# # #?#+#?##########????????????????? | | ??????# # #?# #?# #????????????????? | | ??????# # #?# #?# #????????????????? | | ??????# # #?# #?# #????????????????? | | ??????# # #?# #?# """ #????????????????? | | ??????# # #?# #?# @""" #????????????????? | | ??????# # ### ###gg""" #????????????????? | | ??????# # # ! ##g#######????????????????? | | ??????# #####+####! ######???????????????? | | ??????# #### T +???????????????? | | ??????# ### ######???????????????? | | ??????###### #?# ######????????????????????? | | ???????????# #?###/######??????????????????????? | | ???????????# #???# #??????????????????????? | | ???????????# #???# #??????????????????????? | | ????######## #???# #??????????????????????? | | ##### #???# ![#??????????????????????? | | #!! #???#] [=#??????????????????????? | | #!! #???# #??????????????????????? | | #[ #####+#############??????????????????????? | | #[= # #??????????????????????????????? | | # ! # """ """ #??????????????????????????????? | | #![[ # """ """ #??????????????????????????????? | | ##### # """ """ #??????????????????????????????? | | ????# + #??????????????????????????????? | | ????# # "Y" #??????????????????????????????? | | ????# # """ #??????????????????????????????? | | ????# # ! #??????????????????????????????? | | ????# ###########??????????????????????????????? | | ????# # #???????????????????????????????? | +----------------------------------------------------+ Best States ------------- Heat Dissipation 58 Energy Generation 23 Energy Capacity 650 Matter Stores 300 Matter Capacity 300 Sight Range 16 Robot Scan Range 10 Terrain Scan Range 14 Terrain Scan Density 10 Resistance: KI 20 Resistance: TH 20 Resistance: EX 20 Resistance: EM 20 Resistance: I 20 Resistance: S 20 Resistance: P 20 Evasion (%) 63 Offensive Hacking 10 Item Schematics ----------------- None Robot Schematics ------------------ None Fabricated ------------ Nothing Alien Tech Used ----------------- None Achievements -------------- None Challenges ------------ None Game ------ Seed FactoryBurstDetonator Manual? 0 Play Time 00:33:43 Cumulative 11.3 hours Start 2021.01.04 @ 16:16:30 End 2021.01.04 @ 16:50:23 Sessions 1 Manual Loads 0 Difficulty Adventurer Special Mode None Game No. 22 Rogue 0 Adventurer 22 Explorer 0 Win Type - Total 0 Types 0/0/0/0/0/0/0/0/0 Lore% 13 Gallery% 22 Achievement% 17 Wizard Run 0 Options --------- ASCII 0 Keyboard 0 Movement Mouse Keybinds 0 Fullscreen 2 Font 20/SmallcapsGlow Map View 66x50 Tactical HUD 0 Map Filters NONE Filters NONE Steam 1 RUN: d492799b-4afd-46f9-b96f-6abcd00cae8f